[Event "Kragero Resort International 2022"]
[Site "Kragero"]
[Date "2022.02.24"]
[Round "4.25"]
[White "Nilsen, Tobias Lang"]
[Black "Westrum, Kim Roger Hansen"]
[Result "1/2-1/2"]
[ECO "C78"]
[WhiteElo "2293"]
[BlackElo "1967"]
[Annotator "NA RC"]
[PlyCount "106"]
[EventDate "2022.02.23"]
[EventType "swiss"]
[EventCountry "NOR"]
[SourceTitle "playchess.com"]
[Source "ChessBase"]
[SourceQuality "1"]
[TimeControl "5400+30"]

1. e4 {[%emt 0:00:02]} e5 {[%emt 0:00:19]} 2. Nf3 {[%emt 0:00:10]} Nc6 {[%emt 0:00:10]} 3. Bb5 {[%emt 0:00:05]} a6 {[%emt 0:00:14]} 4. Ba4 {[%emt 0:00:07]} Nf6 {[%emt 0:00:11]} 5. O-O {[%emt 0:00:08]} Bc5 {[%emt 0:00:22]} 6. c3 {[%emt 0:00:14]} b5 {[%emt 0:00:09]} 7. Bb3 {[%emt 0:00:06]} d6 {[%emt 0:00:13]} 8. d4 {[%emt 0:00:08]} Bb6 {[%emt 0:00:08]} 9. Be3 {[%emt 0:00:07]} O-O {[%emt 0:00:31]} 10. Nbd2 {[%emt 0:00:08]} h6 {[%emt 0:01:14]} 11. h3 {[%emt 0:03:16]} Re8 {[%emt 0:00:28]} 12. Qb1 {[%emt 0:03:09]} Rb8 {[%emt 0:01:05]} 13. Re1 {[%emt 0:03:51]} Nh7 {[%emt 0:05:09]} 14. Qd3 {[%emt 0:13:09]} Qf6 {[%emt 0:02:20]} 15. a4 {[%emt 0:03:02]} b4 {[%emt 0:13:14]} 16. Bc4 {[%emt 0:02:05]} Ng5 {[%emt 0:08:56]} 17. Nxg5 {[%emt 0:07:47]} hxg5 {[%emt 0:00:09]} 18. Nf3 {[%emt 0:02:01]} g4 {[%emt 0:02:45]} 19. hxg4 {[%emt 0:00:05]} Bxg4 {[%emt 0:01:01]} 20. Ng5 {[%emt 0:00:07]} Rf8 {[%emt 0:07:21]} 21. d5 {[%emt 0:15:45]} Bxe3 {[%emt 0:00:25]} 22. Qxe3 {[%emt 0:00:07]} Ne7 {[%emt 0:00:18]} 23. Bxa6 {[%emt 0:00:32]} Ng6 {[%emt 0:01:02]} 24. Nh3 {[%emt 0:02:17]} Kh7 {[%emt 0:13:24]} 25. Qg5 {[%emt 0:04:40]} Bxh3 {[%emt 0:13:13]} 26. Qh5+ {[%emt 0:00:07]} Kg8 {[%emt 0:00:07]} 27. Qxh3 {[%emt 0:00:08]} Nf4 {[%emt 0:00:38]} 28. Qf3 {[%emt 0:18:12]} bxc3 {[%emt 0:00:17]} 29. Qxc3 {[%emt 0:00:15]} g5 {[%emt 0:05:08]} 30. Bf1 {[%emt 0:01:36]} Qh6 {[%emt 0:06:27]} 31. g3 {[%emt 0:00:31]} Nh3+ {[%emt 0:00:18]} 32. Bxh3 {[%emt 0:00:11]} Qxh3 {[%emt 0:00:03]} 33. Qe3 {[%emt 0:06:00]} f6 {[%emt 0:01:32]} 34. Ra2 {[%emt 0:00:46]} Kg7 {[%emt 0:04:09]} 35. Qf3 {[%emt 0:01:01]} Rh8 {[%emt 0:00:14]} 36. a5 {[%emt 0:00:28]} Rb3 {[%emt 0:03:09]} 37. Qg2 {[%emt 0:00:13]} Qg4 {[%emt 0:00:15]} 38. a6 {[%emt 0:05:25]} Rh3 {[%emt 0:00:20]} 39. Ra3 {[%emt 0:00:07]} Rxa3 {[%emt 0:00:07]} 40. bxa3 {[%emt 0:00:06]} Rh8 {[%emt 0:00:07]} 41. f3 {[%emt 0:01:47]} Qc8 {[%emt 0:00:40]} 42. Qf1 {[%emt 0:00:52]} Qb8 {[%emt 0:02:07]} 43. Rb1 {[%emt 0:02:59]} Qa7+ {[%emt 0:00:08]} 44. Kg2 {[%emt 0:00:06]} Qe3 {[%emt 0:00:31]} 45. Rb2 {[%emt 0:01:33]} Qxa3 {[%emt 0:00:21]} 46. Rc2 {[%emt 0:00:06]} Kg6 {[%emt 0:00:54]} 47. Qe2 {[%emt 0:02:25]} Qa1 {[%emt 0:01:56]} 48. Qf1 {[%emt 0:04:41]} Rh2+ {[%emt 0:00:11]} 49. Kxh2 {[%emt 0:00:06]} Qxf1 {[%emt 0:00:04]} 50. a7 {[%emt 0:00:05]} Qa6 {[%emt 0:03:40]} 51. Rxc7 {[%emt 0:00:08]} Qe2+ {[%emt 0:00:15]} 52. Kh3 {[%emt 0:00:36]} Qf1+ {[%emt 0:00:12]} 53. Kg4 {[%emt 0:00:09]} Qa6 {[%emt 0:00:35]} 1/2-1/2

[Event "Kragero Resort International 2022"]
[Site "Kragero"]
[Date "2022.02.24"]
[Round "4.26"]
[White "Unneland, Mathias"]
[Black "Verbin, Valentina"]
[Result "1-0"]
[ECO "E09"]
[WhiteElo "2262"]
[BlackElo "2046"]
[Annotator "NA RC"]
[PlyCount "105"]
[EventDate "2022.02.23"]
[EventType "swiss"]
[EventCountry "NOR"]
[SourceTitle "playchess.com"]
[Source "ChessBase"]
[SourceQuality "1"]
[TimeControl "5400+30"]

1. d4 {[%emt 0:00:13]} Nf6 {[%emt 0:00:24]} 2. c4 {[%emt 0:00:12]} e6 {[%emt 0:00:32]} 3. g3 {[%emt 0:00:42]} d5 {[%emt 0:01:14]} 4. Nf3 {[%emt 0:00:25]} Bb4+ {[%emt 0:00:41]} 5. Bd2 {[%emt 0:00:28]} Be7 {[%emt 0:00:40]} 6. Bg2 {[%emt 0:00:24]} O-O {[%emt 0:00:38]} 7. O-O {[%emt 0:00:16]} Nbd7 {[%emt 0:00:53]} 8. Qc2 {[%emt 0:01:44]} c6 {[%emt 0:00:30]} 9. Bf4 {[%emt 0:02:03]} Nh5 {[%emt 0:01:29]} 10. Bc1 {[%emt 0:02:39]} Nhf6 {[%emt 0:03:33]} 11. Nbd2 {[%emt 0:01:50]} h6 {[%emt 0:07:05]} 12. Rd1 {[%emt 0:04:09]} a5 {[%emt 0:06:15]} 13. e4 {[%emt 0:04:59]} dxe4 {[%emt 0:00:20]} 14. Nxe4 {[%emt 0:00:46]} c5 {[%emt 0:07:13]} 15. Nxf6+ {[%emt 0:04:46]} Bxf6 {[%emt 0:11:52]} 16. dxc5 {[%emt 0:05:40]} Qc7 {[%emt 0:00:36]} 17. Nd4 {[%emt 0:04:15]} Bxd4 {[%emt 0:08:01]} 18. Rxd4 {[%emt 0:00:09]} e5 {[%emt 0:04:44]} 19. Rh4 {[%emt 0:10:15]} Nxc5 {[%emt 0:03:41]} 20. Bd5 {[%emt 0:14:02]} Ra6 {[%emt 0:02:55]} 21. Be3 {[%emt 0:05:17]} Rf6 {[%emt 0:01:10]} 22. Re1 {[%emt 0:01:54]} Bf5 {[%emt 0:00:22]} 23. Qc3 {[%emt 0:01:14]} Nd3 {[%emt 0:05:03]} 24. Rd1 {[%emt 0:01:07]} g5 {[%emt 0:08:30]} 25. Rh5 {[%emt 0:02:24]} Bg4 {[%emt 0:04:30]} 26. Bxg5 {[%emt 0:01:08]} Nxf2 {[%emt 0:11:46]} 27. Bxf6 {[%emt 0:01:50]} Bxh5 {[%emt 0:08:08]} 28. Rf1 {[%emt 0:03:43]} Ng4 {[%emt 0:00:34]} 29. h3 {[%emt 0:02:00]} Qc5+ {[%emt 0:00:40]} 30. Kh1 {[%emt 0:00:22]} Ne3 {[%emt 0:00:50]} 31. Qxe5 {[%emt 0:02:43]} Bg6 {[%emt 0:00:38]} 32. Bxf7+ {[%emt 0:01:45]} Rxf7 {[%emt 0:00:31]} 33. Qxc5 {[%emt 0:00:09]} Nxf1 {[%emt 0:00:04]} 34. Qc8+ {[%emt 0:00:19]} Rf8 {[%emt 0:00:07]} 35. Qe6+ {[%emt 0:00:10]} Kh7 {[%emt 0:00:35]} 36. Qe7+ {[%emt 0:00:51]} Rf7 {[%emt 0:00:02]} 37. Qd8 {[%emt 0:00:08]} Be4+ {[%emt 0:00:48]} 38. Kg1 {[%emt 0:00:06]} Nxg3 {[%emt 0:00:16]} 39. Qd6 {[%emt 0:07:44]} Nh5 {[%emt 0:00:41]} 40. Qe6 {[%emt 0:00:44]} Bg6 {[%emt 0:00:48]} 41. Be5 {[%emt 0:00:13]} Rf5 {[%emt 0:01:08]} 42. Qe7+ {[%emt 0:00:40]} Bf7 {[%emt 0:00:31]} 43. Qxb7 {[%emt 0:00:52]} Rg5+ {[%emt 0:00:31]} 44. Kh2 {[%emt 0:00:18]} Kg6 {[%emt 0:00:23]} 45. Qb6+ {[%emt 0:00:20]} Kh7 {[%emt 0:00:14]} 46. Qc7 {[%emt 0:00:46]} Kg6 {[%emt 0:00:14]} 47. Qd6+ {[%emt 0:00:18]} Kf5 {[%emt 0:01:09]} 48. b3 {[%emt 0:00:30]} Be6 {[%emt 0:00:25]} 49. c5 {[%emt 0:00:32]} Nf6 {[%emt 0:00:32]} 50. Bf4 {[%emt 0:00:51]} Rh5 {[%emt 0:00:33]} 51. Qe5+ {[%emt 0:00:08]} Kg6 {[%emt 0:00:06]} 52. Qxe6 {[%emt 0:00:10]} Rxc5 {[%emt 0:00:07]} 53. Be5 {[%emt 0:00:15]} 1-0

[Event "Kragero Resort International 2022"]
[Site "Kragero"]
[Date "2022.02.24"]
[Round "4.27"]
[White "Elmi, Saad Abobaker"]
[Black "Altarbosh, Ward"]
[Result "1/2-1/2"]
[ECO "C13"]
[WhiteElo "2044"]
[BlackElo "2221"]
[Annotator "NA RC"]
[PlyCount "128"]
[EventDate "2022.02.23"]
[EventType "swiss"]
[EventCountry "NOR"]
[SourceTitle "playchess.com"]
[Source "ChessBase"]
[SourceQuality "1"]
[TimeControl "5400+30"]

1. e4 {[%emt 0:00:06]} e6 {[%emt 0:00:24]} 2. d4 {[%emt 0:00:13]} d5 {[%emt 0:00:04]} 3. Nc3 {[%emt 0:00:07]} Nf6 {[%emt 0:00:04]} 4. Bg5 {[%emt 0:00:08]} dxe4 {[%emt 0:00:07]} 5. Nxe4 {[%emt 0:00:06]} Be7 {[%emt 0:00:05]} 6. Bxf6 {[%emt 0:00:10]} gxf6 {[%emt 0:00:06]} 7. Nf3 {[%emt 0:00:35]} f5 {[%emt 0:00:05]} 8. Ng3 {[%emt 0:00:16]} c5 {[%emt 0:00:05]} 9. Qd2 {[%emt 0:00:20]} h5 {[%emt 0:00:11]} 10. O-O-O {[%emt 0:01:11]} h4 {[%emt 0:00:13]} 11. Ne2 {[%emt 0:00:18]} Nc6 {[%emt 0:00:05]} 12. d5 {[%emt 0:01:28]} Qxd5 {[%emt 0:05:41]} 13. Qc3 {[%emt 0:00:53]} Nd4 {[%emt 0:00:05]} 14. Nexd4 {[%emt 0:07:51]} cxd4 {[%emt 0:00:09]} 15. Nxd4 {[%emt 0:00:32]} Bf6 {[%emt 0:00:09]} 16. Bc4 {[%emt 0:00:33]} Qe5 {[%emt 0:00:09]} 17. Rhe1 {[%emt 0:07:47]} Qf4+ {[%emt 0:01:00]} 18. Kb1 {[%emt 0:00:33]} Bd7 {[%emt 0:02:09]} 19. g3 {[%emt 0:06:23]} hxg3 {[%emt 0:04:11]} 20. fxg3 {[%emt 0:02:00]} Qd6 {[%emt 0:00:07]} 21. Qe3 {[%emt 0:04:35]} Qc5 {[%emt 0:03:50]} 22. Nb5 {[%emt 0:05:31]} Qxe3 {[%emt 0:01:19]} 23. Rxe3 {[%emt 0:01:05]} Bxb5 {[%emt 0:00:26]} 24. Bxb5+ {[%emt 0:00:14]} Kf8 {[%emt 0:00:03]} 25. Re2 {[%emt 0:00:54]} a6 {[%emt 0:03:28]} 26. Bc4 {[%emt 0:00:33]} Rd8 {[%emt 0:05:18]} 27. Rxd8+ {[%emt 0:00:14]} Bxd8 {[%emt 0:00:01]} 28. Kc1 {[%emt 0:01:04]} Kg7 {[%emt 0:00:21]} 29. Kd2 {[%emt 0:00:18]} Bg5+ {[%emt 0:00:55]} 30. Ke1 {[%emt 0:00:45]} f4 {[%emt 0:00:01]} 31. Kf1 {[%emt 0:01:02]} fxg3 {[%emt 0:02:00]} 32. hxg3 {[%emt 0:00:41]} b5 {[%emt 0:01:01]} 33. Bd3 {[%emt 0:00:16]} Rh1+ {[%emt 0:00:05]} 34. Kg2 {[%emt 0:00:21]} Rc1 {[%emt 0:00:21]} 35. b3 {[%emt 0:05:37]} Bf6 {[%emt 0:02:58]} 36. Re4 {[%emt 0:02:51]} a5 {[%emt 0:02:21]} 37. b4 {[%emt 0:02:13]} Ra1 {[%emt 0:06:16]} 38. bxa5 {[%emt 0:00:53]} Rxa2 {[%emt 0:00:06]} 39. Rb4 {[%emt 0:00:18]} Rxa5 {[%emt 0:00:07]} 40. Rxb5 {[%emt 0:00:06]} Ra1 {[%emt 0:00:16]} 41. Kf3 {[%emt 0:02:16]} Bd4 {[%emt 0:00:55]} 42. g4 {[%emt 0:00:40]} Re1 {[%emt 0:00:11]} 43. Rb4 {[%emt 0:01:51]} e5 {[%emt 0:01:33]} 44. Bf5 {[%emt 0:08:08]} Kf6 {[%emt 0:05:46]} 45. Rb7 {[%emt 0:01:16]} Re3+ {[%emt 0:01:20]} 46. Kg2 {[%emt 0:00:37]} e4 {[%emt 0:00:55]} 47. Rd7 {[%emt 0:07:18]} Bc5 {[%emt 0:17:08]} 48. Rd5 {[%emt 0:01:43]} Ba7 {[%emt 0:04:16]} 49. g5+ {[%emt 0:00:27]} Kxg5 {[%emt 0:00:40]} 50. Bxe4+ {[%emt 0:00:10]} Kf4 {[%emt 0:01:44]} 51. Bd3 {[%emt 0:00:26]} Rg3+ {[%emt 0:00:01]} 52. Kf1 {[%emt 0:01:12]} Ke3 {[%emt 0:00:32]} 53. Re5+ {[%emt 0:01:27]} Kd2 {[%emt 0:01:49]} 54. Re2+ {[%emt 0:00:33]} Kd1 {[%emt 0:00:03]} 55. Re1+ {[%emt 0:00:09]} Kd2 {[%emt 0:00:01]} 56. Re2+ {[%emt 0:00:58]} Kc3 {[%emt 0:00:01]} 57. Re7 {[%emt 0:00:34]} Bd4 {[%emt 0:01:02]} 58. Ke2 {[%emt 0:00:50]} Rg2+ {[%emt 0:00:13]} 59. Kf3 {[%emt 0:00:21]} Rf2+ {[%emt 0:00:30]} 60. Kg4 {[%emt 0:00:20]} f6 {[%emt 0:00:02]} 61. Re2 {[%emt 0:01:37]} Rf1 {[%emt 0:00:01]} 62. Kh3 {[%emt 0:01:24]} Be5 {[%emt 0:04:21]} 63. Rxe5 {[%emt 0:01:27]} fxe5 {[%emt 0:00:25]} 64. Bxf1 {[%emt 0:00:12]} Kxc2 {[%emt 0:00:03]} 1/2-1/2

[Event "Kragero Resort International 2022"]
[Site "Kragero"]
[Date "2022.02.24"]
[Round "4.28"]
[White "Shehzad, Shazil"]
[Black "Manukyan, Hayk T."]
[Result "1/2-1/2"]
[ECO "B22"]
[WhiteElo "2182"]
[BlackElo "1905"]
[Annotator "RC"]
[PlyCount "154"]
[EventDate "2022.02.23"]
[EventType "swiss"]
[EventCountry "NOR"]
[SourceTitle "playchess.com"]
[Source "ChessBase"]
[SourceQuality "1"]
[TimeControl "5400+30"]

1. e4 {[%emt 0:01:11]} c5 {[%emt 0:00:06]} 2. Nf3 {[%emt 0:00:23]} g6 {[%emt 0:00:05]} 3. c3 {[%emt 0:00:16]} d5 {[%emt 0:00:32]} 4. e5 {[%emt 0:00:13]} Nc6 {[%emt 0:05:42]} 5. d4 {[%emt 0:00:24]} cxd4 {[%emt 0:02:38]} 6. cxd4 {[%emt 0:00:09]} Bg4 {[%emt 0:00:14]} 7. Bb5 {[%emt 0:01:24]} Nh6 {[%emt 0:11:00]} 8. Nbd2 {[%emt 0:02:05]} Bxf3 {[%emt 0:01:32]} 9. Bxc6+ {[%emt 0:00:18]} bxc6 {[%emt 0:00:04]} 10. Nxf3 {[%emt 0:00:15]} f6 {[%emt 0:04:02]} 11. O-O {[%emt 0:01:08]} Bg7 {[%emt 0:00:44]} 12. exf6 {[%emt 0:00:51]} exf6 {[%emt 0:00:04]} 13. Bf4 {[%emt 0:05:44]} Nf5 {[%emt 0:02:33]} 14. Rc1 {[%emt 0:04:24]} Qd7 {[%emt 0:04:29]} 15. Qa4 {[%emt 0:01:10]} Rc8 {[%emt 0:17:16]} 16. Rc5 {[%emt 0:02:55]} g5 {[%emt 0:01:02]} 17. Bc1 {[%emt 0:06:34]} O-O {[%emt 0:04:42]} 18. Nd2 {[%emt 0:01:32]} Rf7 {[%emt 0:02:28]} 19. Nb3 {[%emt 0:03:58]} Bf8 {[%emt 0:01:56]} 20. Rc3 {[%emt 0:01:07]} Qe8 {[%emt 0:06:41]} 21. Qa6 {[%emt 0:09:29]} Rfc7 {[%emt 0:09:01]} 22. Rf3 {[%emt 0:05:03]} Qe6 {[%emt 0:04:11]} 23. Qd3 {[%emt 0:00:53]} Nh4 {[%emt 0:00:13]} 24. Re3 {[%emt 0:01:04]} Qg4 {[%emt 0:00:56]} 25. Rg3 {[%emt 0:03:41]} Qe4 {[%emt 0:01:13]} 26. Qxe4 {[%emt 0:00:58]} dxe4 {[%emt 0:00:01]} 27. Re1 {[%emt 0:00:56]} Nf5 {[%emt 0:03:06]} 28. Rg4 {[%emt 0:02:50]} Bb4 {[%emt 0:04:22]} 29. Re2 {[%emt 0:02:45]} c5 {[%emt 0:00:42]} 30. dxc5 {[%emt 0:02:59]} Rd7 {[%emt 0:00:22]} 31. Bd2 {[%emt 0:03:58]} Bxd2 {[%emt 0:05:42]} 32. Rxd2 {[%emt 0:01:08]} Rxd2 {[%emt 0:00:35]} 33. Nxd2 {[%emt 0:00:10]} Rxc5 {[%emt 0:01:01]} 34. Rxe4 {[%emt 0:00:51]} Rc2 {[%emt 0:00:07]} 35. Nf1 {[%emt 0:00:25]} Rxb2 {[%emt 0:00:13]} 36. Ra4 {[%emt 0:00:11]} Rb7 {[%emt 0:00:47]} 37. g3 {[%emt 0:00:14]} Kf7 {[%emt 0:00:22]} 38. Nd2 {[%emt 0:00:36]} Nd6 {[%emt 0:00:51]} 39. Ra6 {[%emt 0:01:41]} Ke7 {[%emt 0:02:10]} 40. Nb3 {[%emt 0:00:49]} Rc7 {[%emt 0:00:43]} 41. Nd4 {[%emt 0:03:32]} Nc8 {[%emt 0:02:41]} 42. Nf5+ {[%emt 0:02:58]} Kf7 {[%emt 0:00:30]} 43. a4 {[%emt 0:00:50]} Kg6 {[%emt 0:01:38]} 44. Ne3 {[%emt 0:00:11]} Ne7 {[%emt 0:00:52]} 45. Ng4 {[%emt 0:02:24]} Nc6 {[%emt 0:00:43]} 46. Ne3 {[%emt 0:03:51]} Ne7 {[%emt 0:00:57]} 47. Kg2 {[%emt 0:00:25]} Kf7 {[%emt 0:01:15]} 48. Kf3 {[%emt 0:02:07]} Kg6 {[%emt 0:00:50]} 49. Ng4 {[%emt 0:02:24]} Nc6 {[%emt 0:00:22]} 50. Ne3 {[%emt 0:03:23]} Ne7 {[%emt 0:00:05]} 51. Ke4 {[%emt 0:01:40]} Kf7 {[%emt 0:00:54]} 52. f4 {[%emt 0:01:24]} gxf4 {[%emt 0:00:24]} 53. Kxf4 {[%emt 0:00:38]} Kg6 {[%emt 0:00:45]} 54. Ke4 {[%emt 0:01:51]} Kf7 {[%emt 0:00:15]} 55. Kd4 {[%emt 0:02:47]} Nc6+ {[%emt 0:00:07]} 56. Ke4 {[%emt 0:00:28]} Ne7 {[%emt 0:00:20]} 57. h4 {[%emt 0:00:38]} Kg6 {[%emt 0:01:03]} 58. Ng2 {[%emt 0:02:28]} Kf7 {[%emt 0:00:31]} 59. Nf4 {[%emt 0:00:09]} Rc4+ {[%emt 0:00:28]} 60. Kf3 {[%emt 0:01:08]} Rc7 {[%emt 0:00:15]} 61. Kg4 {[%emt 0:00:16]} Rd7 {[%emt 0:01:04]} 62. Nh5 {[%emt 0:03:46]} Nd5 {[%emt 0:00:31]} 63. Kf5 {[%emt 0:00:56]} Ne3+ {[%emt 0:00:29]} 64. Ke4 {[%emt 0:00:45]} Nd5 {[%emt 0:00:14]} 65. Kf3 {[%emt 0:01:50]} Kg6 {[%emt 0:00:13]} 66. g4 {[%emt 0:00:10]} Kf7 {[%emt 0:00:53]} 67. Ng3 {[%emt 0:00:17]} Ne7 {[%emt 0:00:11]} 68. Ne4 {[%emt 0:00:19]} Nd5 {[%emt 0:00:18]} 69. Rc6 {[%emt 0:01:34]} Kg7 {[%emt 0:00:53]} 70. a5 {[%emt 0:00:37]} Kf7 {[%emt 0:00:48]} 71. a6 {[%emt 0:00:12]} Kg7 {[%emt 0:00:20]} 72. Rc8 {[%emt 0:01:06]} Kf7 {[%emt 0:00:40]} 73. Rb8 {[%emt 0:00:23]} Rc7 {[%emt 0:00:30]} 74. Rb7 {[%emt 0:01:46]} Ke6 {[%emt 0:00:10]} 75. Ke2 {[%emt 0:00:53]} Ke5 {[%emt 0:00:09]} 76. Kf3 {[%emt 0:00:40]} f5 {[%emt 0:01:07]} 77. gxf5 {[%emt 0:00:38]} Kxf5 {[%emt 0:00:03]} 1/2-1/2

[Event "Kragero Resort International 2022"]
[Site "Kragero"]
[Date "2022.02.25"]
[Round "5.1"]
[White "Seo, Jung Min"]
[Black "Van Foreest, Lucas"]
[Result "1/2-1/2"]
[ECO "D31"]
[WhiteElo "2466"]
[BlackElo "2563"]
[Annotator "ChessBase"]
[PlyCount "46"]
[EventDate "2022.02.23"]
[EventType "swiss"]
[EventCountry "NOR"]
[SourceTitle "playchess.com"]
[Source "ChessBase"]
[SourceQuality "1"]
[TimeControl "5400+30"]

1. d4 {[%emt 0:00:06]} d5 {[%emt 0:00:46]} 2. c4 {[%emt 0:00:02]} e6 {[%emt 0:00:03]} 3. Nf3 {[%emt 0:00:04]} a6 {[%emt 0:00:01]} 4. cxd5 {[%emt 0:00:35]} exd5 {[%emt 0:00:44]} 5. Nc3 {[%emt 0:00:31]} c6 {[%emt 0:00:33]} 6. Bf4 {[%emt 0:03:43]} Bd6 {[%emt 0:02:01]} 7. Bxd6 {[%emt 0:00:46]} Qxd6 {[%emt 0:00:34]} 8. Qb3 {[%emt 0:02:08]} Nf6 {[%emt 0:05:27]} 9. e3 {[%emt 0:00:15]} Nbd7 {[%emt 0:02:33]} 10. Bd3 {[%emt 0:02:52]} O-O {[%emt 0:05:20]} 11. O-O {[%emt 0:01:27]} Re8 {[%emt 0:06:56]} 12. Rfe1 {[%emt 0:07:04]} h6 {[%emt 0:08:08]} 13. Qc2 {[%emt 0:03:53]} Nf8 {[%emt 0:07:57]} 14. h3 {[%emt 0:11:53]} Be6 {[%emt 0:06:10]} 15. Rab1 {[%emt 0:03:40]} N8d7 {[%emt 0:02:18]} 16. a3 {[%emt 0:10:35]} a5 {[%emt 0:01:16]} 17. Rec1 {[%emt 0:03:19]} Rec8 {[%emt 0:01:58]} 18. Na4 {[%emt 0:02:09]} b6 {[%emt 0:02:55]} 19. b4 {[%emt 0:06:23]} axb4 {[%emt 0:00:17]} 20. axb4 {[%emt 0:00:04]} Rc7 {[%emt 0:11:14]} 21. Nc3 {[%emt 0:00:51]} Rcc8 {[%emt 0:01:55]} 22. Na4 {[%emt 0:01:53]} Rc7 {[%emt 0:00:15]} 23. Nc3 {[%emt 0:00:22]} Rcc8 {[%emt 0:00:05]} 1/2-1/2

[Event "Kragero Resort International 2022"]
[Site "Kragero"]
[Date "2022.02.25"]
[Round "5.1"]
[White "Engeset, Audun"]
[Black "Haug, Havard"]
[Result "1/2-1/2"]
[ECO "B52"]
[WhiteElo "1823"]
[BlackElo "1801"]
[Annotator "NA"]
[PlyCount "114"]
[EventDate "2022.02.23"]
[EventType "swiss"]
[EventCountry "NOR"]
[SourceTitle "playchess.com"]
[Source "ChessBase"]
[SourceQuality "1"]
[TimeControl "5400+30"]

1. e4 {[%emt 0:00:06]} c5 {[%emt 0:00:06]} 2. Nf3 {[%emt 0:00:06]} d6 {[%emt 0:00:08]} 3. Bb5+ {[%emt 0:00:25]} Bd7 {[%emt 0:00:47]} 4. Bxd7+ {[%emt 0:00:12]} Qxd7 {[%emt 0:00:36]} 5. c4 {[%emt 0:00:10]} g6 {[%emt 0:01:07]} 6. d4 {[%emt 0:00:41]} cxd4 {[%emt 0:01:00]} 7. Nxd4 {[%emt 0:00:12]} Nf6 {[%emt 0:00:24]} 8. Nc3 {[%emt 0:00:22]} Bg7 {[%emt 0:00:20]} 9. f3 {[%emt 0:00:47]} Nc6 {[%emt 0:02:18]} 10. Be3 {[%emt 0:00:23]} O-O {[%emt 0:00:47]} 11. O-O {[%emt 0:02:21]} e6 {[%emt 0:05:32]} 12. Qd2 {[%emt 0:07:20]} Rfd8 {[%emt 0:06:45]} 13. Rfd1 {[%emt 0:04:18]} a6 {[%emt 0:05:04]} 14. Qe2 {[%emt 0:04:32]} Rac8 $11 {[%emt 0:02:18]} 15. Rac1 {[%emt 0:04:27]} Nxd4 {[%emt 0:06:58]} 16. Bxd4 {[%emt 0:00:14]} Qc6 {[%emt 0:01:07]} 17. b3 {[%emt 0:02:17]} Nd7 {[%emt 0:08:00]} 18. Bxg7 {[%emt 0:07:17]} Kxg7 {[%emt 0:00:12]} 19. Qb2 {[%emt 0:01:31]} Nf6 {[%emt 0:03:00]} 20. Kh1 {[%emt 0:07:28]} Qc5 {[%emt 0:05:37]} 21. a4 {[%emt 0:07:11]} Qe5 {[%emt 0:05:48]} 22. Rc2 {[%emt 0:05:37]} Rc6 {[%emt 0:02:35]} 23. Rcd2 {[%emt 0:07:27]} h5 {[%emt 0:05:01]} 24. Ne2 {[%emt 0:06:51]} Qxb2 {[%emt 0:02:34]} 25. Rxb2 {[%emt 0:00:09]} Rd7 {[%emt 0:06:43]} 26. Rbd2 {[%emt 0:02:01]} Kf8 {[%emt 0:07:26]} 27. e5 {[%emt 0:11:55]} Ne8 {[%emt 0:00:23]} 28. Nd4 {[%emt 0:01:34]} Rcc7 {[%emt 0:01:19]} 29. exd6 {[%emt 0:04:07]} Rxd6 {[%emt 0:00:22]} 30. Ne2 {[%emt 0:01:23]} Ke7 {[%emt 0:00:33]} 31. Rxd6 {[%emt 0:02:40]} Nxd6 {[%emt 0:00:02]} 32. Kg1 {[%emt 0:00:49]} b5 {[%emt 0:01:01]} 33. cxb5 {[%emt 0:00:36]} axb5 {[%emt 0:00:01]} 34. a5 {[%emt 0:00:57]} b4 {[%emt 0:00:39]} 35. Ra1 {[%emt 0:02:39]} Nb5 {[%emt 0:06:10]} 36. a6 {[%emt 0:02:29]} Na3 {[%emt 0:00:39]} 37. Nc1 {[%emt 0:00:33]} Ra7 {[%emt 0:01:08]} 38. Nd3 {[%emt 0:00:52]} Rxa6 {[%emt 0:00:25]} 39. Nxb4 {[%emt 0:00:11]} Rb6 {[%emt 0:00:06]} 40. Rxa3 {[%emt 0:00:34]} Rxb4 {[%emt 0:00:06]} 41. Kf2 {[%emt 0:00:16]} f5 {[%emt 0:02:14]} 42. Ke2 {[%emt 0:01:07]} Kf6 {[%emt 0:00:31]} 43. Kd3 {[%emt 0:00:43]} Rb8 {[%emt 0:00:28]} 44. Kc3 {[%emt 0:00:53]} Rc8+ {[%emt 0:00:31]} 45. Kb2 {[%emt 0:00:59]} Ke5 {[%emt 0:04:28]} 46. b4 {[%emt 0:00:44]} Kd4 {[%emt 0:01:30]} 47. Rb3 {[%emt 0:01:32]} e5 {[%emt 0:01:38]} 48. b5 {[%emt 0:01:35]} Rb8 {[%emt 0:01:52]} 49. Ka3 {[%emt 0:00:55]} e4 {[%emt 0:00:30]} 50. fxe4 {[%emt 0:00:19]} fxe4 {[%emt 0:00:07]} 51. Kb2 {[%emt 0:00:41]} Kc5 {[%emt 0:03:43]} 52. Kc3 {[%emt 0:00:30]} Rxb5 {[%emt 0:02:10]} 53. Rxb5+ {[%emt 0:00:11]} Kxb5 {[%emt 0:00:05]} 54. Kd4 {[%emt 0:00:06]} Kc6 {[%emt 0:00:04]} 55. Kxe4 {[%emt 0:00:16]} Kd6 {[%emt 0:00:02]} 56. Kf4 {[%emt 0:00:23]} Ke6 {[%emt 0:00:05]} 57. Kg5 {[%emt 0:00:53]} Kf7 {[%emt 0:00:02]} 1/2-1/2

[Event "Kragero Resort International 2022"]
[Site "Kragero"]
[Date "2022.02.25"]
[Round "5.2"]
[White "Ostensen, Nicolai Maxime"]
[Black "Strand, Amund Pihl"]
[Result "1-0"]
[ECO "A36"]
[WhiteElo "1728"]
[BlackElo "1748"]
[Annotator "NA"]
[PlyCount "85"]
[EventDate "2022.02.23"]
[EventType "swiss"]
[EventCountry "NOR"]
[SourceTitle "playchess.com"]
[Source "ChessBase"]
[SourceQuality "1"]
[TimeControl "5400+30"]

1. c4 {[%emt 0:00:02]} c5 {[%emt 0:05:13]} 2. Nc3 {[%emt 0:00:05]} Nc6 {[%emt 0:00:05]} 3. g3 {[%emt 0:00:04]} g6 {[%emt 0:00:05]} 4. Bg2 {[%emt 0:00:03]} Bg7 {[%emt 0:00:07]} 5. a3 {[%emt 0:00:02]} d6 {[%emt 0:00:20]} 6. e3 {[%emt 0:01:09]} Nf6 {[%emt 0:06:54]} 7. Nge2 {[%emt 0:00:30]} O-O {[%emt 0:00:22]} 8. O-O {[%emt 0:01:18]} e6 {[%emt 0:09:58]} 9. Nf4 {[%emt 0:03:38]} Ne7 {[%emt 0:07:20]} 10. b4 {[%emt 0:02:59]} cxb4 {[%emt 0:02:46]} 11. axb4 {[%emt 0:00:05]} d5 {[%emt 0:07:18]} 12. c5 {[%emt 0:06:58]} Ne4 {[%emt 0:10:56]} 13. Bb2 {[%emt 0:01:06]} Nxc3 {[%emt 0:00:56]} 14. Bxc3 {[%emt 0:00:31]} Bxc3 {[%emt 0:00:38]} 15. dxc3 {[%emt 0:00:04]} b6 {[%emt 0:01:51]} 16. Nd3 {[%emt 0:04:29]} a5 {[%emt 0:05:32]} 17. Qb3 {[%emt 0:03:42]} b5 {[%emt 0:05:21]} 18. Rfd1 {[%emt 0:03:00]} a4 {[%emt 0:03:03]} 19. Qa2 {[%emt 0:00:35]} Bb7 {[%emt 0:02:24]} 20. Rd2 {[%emt 0:07:49]} Qc7 {[%emt 0:01:47]} 21. Rad1 {[%emt 0:00:26]} Rad8 {[%emt 0:01:10]} 22. Nf4 {[%emt 0:00:54]} Nc6 {[%emt 0:05:26]} 23. Nd3 {[%emt 0:08:18]} Rd7 {[%emt 0:03:50]} 24. f4 {[%emt 0:00:34]} Rfd8 {[%emt 0:06:07]} 25. Nf2 {[%emt 0:01:29]} f5 {[%emt 0:03:51]} 26. Nh3 {[%emt 0:01:52]} h6 {[%emt 0:01:03]} 27. Nf2 {[%emt 0:00:07]} Kf7 {[%emt 0:02:04]} 28. Rd3 {[%emt 0:01:37]} Ne7 {[%emt 0:02:02]} 29. R3d2 {[%emt 0:01:03]} Ng8 {[%emt 0:00:42]} 30. Nd3 {[%emt 0:00:25]} Nf6 {[%emt 0:01:39]} 31. Ne5+ {[%emt 0:00:20]} Kg7 {[%emt 0:00:10]} 32. Nxd7 {[%emt 0:00:34]} Rxd7 {[%emt 0:00:13]} 33. Qa1 {[%emt 0:01:54]} Kf7 {[%emt 0:02:16]} 34. h3 {[%emt 0:01:36]} Bc6 {[%emt 0:00:44]} 35. Kh2 {[%emt 0:00:15]} Ne4 {[%emt 0:01:57]} 36. Bxe4 {[%emt 0:00:22]} dxe4 {[%emt 0:00:08]} 37. Rxd7+ {[%emt 0:00:36]} Bxd7 {[%emt 0:00:06]} 38. Rd6 {[%emt 0:00:09]} Bc6 {[%emt 0:00:15]} 39. c4 {[%emt 0:02:13]} bxc4 {[%emt 0:01:42]} 40. Qh8 {[%emt 0:00:07]} Qb7 {[%emt 0:01:29]} 41. Qh7+ {[%emt 0:00:16]} Kf6 {[%emt 0:00:11]} 42. Qh8+ {[%emt 0:00:24]} Kf7 {[%emt 0:00:11]} 43. Rd8 {[%emt 0:00:17]} 1-0